Workbook

Sheet DADESAL
E9: 6
E12: 700
E15: 2
E18: 5

Sheet INFORME
D5: Ample de treball: | E5: =CALCAL!B5 -> 6 | F5: m
D6: Densitat: | E6: =CALCAL!B2 -> 0.7 | F6: Tn/m3
D7: Velocitat cinta: | E7: =CALCAL!B3 -> 2 | F7: m/s
D8: Ample caixa: | E8: =CALCAL!B4 -> 5 | F8: m
B11: Exemple: | I11: ="si l'obertura de la porta del darrere és de 0,8 m i la velocitat és de 3,5 km/h la dosi aplicada serà de "&INT(G21)&" tones hectàrea" -> si l'obertura de la porta del darrere és de 0,8 m i la velocitat és de 3,5 km/h la dosi aplicada serà de 160 tones hectàrea
D15: 0.2 | E15: 0.4 | F15: 0.6 | G15: 0.8 | H15: 1 | I15: 1.2 | J15: 1.4
C16: 1 | D16: =CALCAL!B11 -> 140 | E16: =CALCAL!C11 -> 280 | F16: =CALCAL!D11 -> 420 | G16: =CALCAL!E11 -> 560 | H16: =CALCAL!F11 -> 700 | I16: =CALCAL!G11 -> 840 | J16: =CALCAL!H11 -> 980
C17: 1.5 | D17: =CALCAL!B12 -> 93.33333333 | E17: =CALCAL!C12 -> 186.6666667 | F17: =CALCAL!D12 -> 280 | G17: =CALCAL!E12 -> 373.3333333 | H17: =CALCAL!F12 -> 466.6666667 | I17: =CALCAL!G12 -> 560 | J17: =CALCAL!H12 -> 653.3333333
C18: 2 | D18: =CALCAL!B13 -> 70 | E18: =CALCAL!C13 -> 140 | F18: =CALCAL!D13 -> 210 | G18: =CALCAL!E13 -> 280 | H18: =CALCAL!F13 -> 350 | I18: =CALCAL!G13 -> 420 | J18: =CALCAL!H13 -> 490
C19: 2.5 | D19: =CALCAL!B14 -> 56 | E19: =CALCAL!C14 -> 112 | F19: =CALCAL!D14 -> 168 | G19: =CALCAL!E14 -> 224 | H19: =CALCAL!F14 -> 280 | I19: =CALCAL!G14 -> 336 | J19: =CALCAL!H14 -> 392
C20: 3 | D20: =CALCAL!B15 -> 46.66666667 | E20: =CALCAL!C15 -> 93.33333333 | F20: =CALCAL!D15 -> 140 | G20: =CALCAL!E15 -> 186.6666667 | H20: =CALCAL!F15 -> 233.3333333 | I20: =CALCAL!G15 -> 280 | J20: =CALCAL!H15 -> 326.6666667
C21: 3.5 | D21: =CALCAL!B16 -> 40 | E21: =CALCAL!C16 -> 80 | F21: =CALCAL!D16 -> 120 | G21: =CALCAL!E16 -> 160 | H21: =CALCAL!F16 -> 200 | I21: =CALCAL!G16 -> 240 | J21: =CALCAL!H16 -> 280
C22: 4 | D22: =CALCAL!B17 -> 35 | E22: =CALCAL!C17 -> 70 | F22: =CALCAL!D17 -> 105 | G22: =CALCAL!E17 -> 140 | H22: =CALCAL!F17 -> 175 | I22: =CALCAL!G17 -> 210 | J22: =CALCAL!H17 -> 245
C23: 4.5 | D23: =CALCAL!B18 -> 31.11111111 | E23: =CALCAL!C18 -> 62.22222222 | F23: =CALCAL!D18 -> 93.33333333 | G23: =CALCAL!E18 -> 124.4444444 | H23: =CALCAL!F18 -> 155.5555556 | I23: =CALCAL!G18 -> 186.6666667 | J23: =CALCAL!H18 -> 217.7777778
C24: 5 | D24: =CALCAL!B19 -> 28 | E24: =CALCAL!C19 -> 56 | F24: =CALCAL!D19 -> 84 | G24: =CALCAL!E19 -> 112 | H24: =CALCAL!F19 -> 140 | I24: =CALCAL!G19 -> 168 | J24: =CALCAL!H19 -> 196
C25: 5.5 | D25: =CALCAL!B20 -> 25.45454545 | E25: =CALCAL!C20 -> 50.90909091 | F25: =CALCAL!D20 -> 76.36363636 | G25: =CALCAL!E20 -> 101.8181818 | H25: =CALCAL!F20 -> 127.2727273 | I25: =CALCAL!G20 -> 152.7272727 | J25: =CALCAL!H20 -> 178.1818182
C26: 6 | D26: =CALCAL!B21 -> 23.33333333 | E26: =CALCAL!C21 -> 46.66666667 | F26: =CALCAL!D21 -> 70 | G26: =CALCAL!E21 -> 93.33333333 | H26: =CALCAL!F21 -> 116.6666667 | I26: =CALCAL!G21 -> 140 | J26: =CALCAL!H21 -> 163.3333333
C27: 6.5 | D27: =CALCAL!B22 -> 21.53846154 | E27: =CALCAL!C22 -> 43.07692308 | F27: =CALCAL!D22 -> 64.61538462 | G27: =CALCAL!E22 -> 86.15384615 | H27: =CALCAL!F22 -> 107.6923077 | I27: =CALCAL!G22 -> 129.2307692 | J27: =CALCAL!H22 -> 150.7692308
C28: 7 | D28: =CALCAL!B23 -> 20 | E28: =CALCAL!C23 -> 40 | F28: =CALCAL!D23 -> 60 | G28: =CALCAL!E23 -> 80 | H28: =CALCAL!F23 -> 100 | I28: =CALCAL!G23 -> 120 | J28: =CALCAL!H23 -> 140

Sheet CALCAL (hidden)
A2: Densitat | B2: =DADESAL!E12/1000 -> 0.7 | C2: Tn/m3 | F2: AC | G2: Ample caixa
A3: Vcinta (0,5-5) | B3: =DADESAL!E15 -> 2 | C3: m/s | F3: AT | G3: Ample treball
A4: Ampcai | B4: =DADESAL!E18 -> 5 | C4: m
A5: Ample treball | B5: =DADESAL!E9 -> 6 | C5: m
D7: ALTURA PORTA
A9: DOSIFICACIÓ (m3/ha) | B9: 0.2 | C9: 0.4 | D9: 0.6 | E9: 0.8 | F9: 1 | G9: 1.2 | H9: 1.4
A10: Velocitat
A11: 1 | B11: =($B$2*$B$3*$B$4*B$9*600)/($B$5*$A11) -> 140 | C11: =($B$2*$B$3*$B$4*C$9*600)/($B$5*$A11) -> 280 | D11: =($B$2*$B$3*$B$4*D$9*600)/($B$5*$A11) -> 420 | E11: 560 | F11: 700 | G11: =($B$2*$B$3*$B$4*G$9*600)/($B$5*$A11) -> 840 | H11: 980
A12: 1.5 | B12: =($B$2*$B$3*$B$4*B$9*600)/($B$5*$A12) -> 93.33333333 | C12: =($B$2*$B$3*$B$4*C$9*600)/($B$5*$A12) -> 186.6666667 | D12: 280 | E12: 373.3333333 | F12: 466.6666667 | G12: 560 | H12: 653.3333333
A13: 2 | B13: =($B$2*$B$3*$B$4*B$9*600)/($B$5*$A13) -> 70 | C13: 140 | D13: 210 | E13: 280 | F13: 350 | G13: 420 | H13: 490
A14: 2.5 | B14: =($B$2*$B$3*$B$4*B$9*600)/($B$5*$A14) -> 56 | C14: 112 | D14: 168 | E14: 224 | F14: 280 | G14: 336 | H14: 392
A15: 3 | B15: 46.66666667 | C15: =($B$2*$B$3*$B$4*C$9*600)/($B$5*$A15) -> 93.33333333 | D15: 140 | E15: 186.6666667 | F15: 233.3333333 | G15: 280 | H15: 326.6666667
A16: 3.5 | B16: 40 | C16: 80 | D16: 120 | E16: 160 | F16: 200 | G16: 240 | H16: 280
A17: 4 | B17: 35 | C17: 70 | D17: 105 | E17: 140 | F17: 175 | G17: 210 | H17: 245
A18: 4.5 | B18: 31.11111111 | C18: 62.22222222 | D18: 93.33333333 | E18: =($B$2*$B$3*$B$4*E$9*600)/($B$5*$A18) -> 124.4444444 | F18: 155.5555556 | G18: 186.6666667 | H18: 217.7777778
A19: 5 | B19: 28 | C19: 56 | D19: 84 | E19: 112 | F19: 140 | G19: 168 | H19: 196
A20: 5.5 | B20: 25.45454545 | C20: 50.90909091 | D20: 76.36363636 | E20: 101.8181818 | F20: 127.2727273 | G20: 152.7272727 | H20: 178.1818182
A21: 6 | B21: 23.33333333 | C21: 46.66666667 | D21: =($B$2*$B$3*$B$4*D$9*600)/($B$5*$A21) -> 70 | E21: 93.33333333 | F21: 116.6666667 | G21: 140 | H21: 163.3333333
A22: 6.5 | B22: 21.53846154 | C22: 43.07692308 | D22: =($B$2*$B$3*$B$4*D$9*600)/($B$5*$A22) -> 64.61538462 | E22: 86.15384615 | F22: 107.6923077 | G22: 129.2307692 | H22: 150.7692308
A23: 7 | B23: 20 | C23: 40 | D23: 60 | E23: 80 | F23: 100 | G23: 120 | H23: 140
